[Event "Late-Titled-Tuesday-Blitz-February-27-2024"]
[Site "Chess.com"]
[Date "2024.02.27"]
[Round "5"]
[White "gxbg2000"]
[Black "kalxandria"]
[Result "1-0"]
[WhiteElo "1940"]
[BlackElo "2141"]
[TimeControl "180+1"]
[EndTime "14:54:21 PST"]
[Termination "gxbg2000 won by resignation"]

1. e4 {[%clk 0:02:55.7]} 1... e5 {[%clk 0:02:59.6]} 2. Nf3 {[%clk 0:02:55.3]}
2... Nc6 {[%clk 0:02:59.1]} 3. d4 {[%clk 0:02:55.9]} 3... exd4 {[%clk
0:02:58.9]} 4. Nxd4 {[%clk 0:02:56.5]} 4... Bc5 {[%clk 0:02:55.7]} 5. Nxc6
{[%clk 0:02:57.1]} 5... Qf6 {[%clk 0:02:48.6]} 6. Qd2 {[%clk 0:02:56.6]} 6...
dxc6 {[%clk 0:02:45.7]} 7. Bd3 {[%clk 0:02:57.2]} 7... Be6 {[%clk 0:02:41.3]} 8.
O-O {[%clk 0:02:57.8]} 8... O-O-O {[%clk 0:02:40.4]} 9. Nc3 {[%clk 0:02:57.7]}
9... Ne7 {[%clk 0:02:24.5]} 10. Qg5 {[%clk 0:02:57.1]} 10... Qxg5 {[%clk
0:02:18.3]} 11. Bxg5 {[%clk 0:02:58]} 11... f6 {[%clk 0:02:18.4]} 12. Bh4 {[%clk
0:02:56.1]} 12... Ng6 {[%clk 0:02:11.5]} 13. Bg3 {[%clk 0:02:55.6]} 13... h5
{[%clk 0:02:06.3]} 14. h3 {[%clk 0:02:50.3]} 14... h4 {[%clk 0:01:59.3]} 15. Bh2
{[%clk 0:02:49.4]} 15... Ne5 {[%clk 0:01:58.1]} 16. Rad1 {[%clk 0:02:45.7]}
16... Rd7 {[%clk 0:01:42.9]} 17. Bxe5 {[%clk 0:02:43.1]} 17... fxe5 {[%clk
0:01:42.2]} 18. Be2 {[%clk 0:02:42.7]} 18... Rhd8 {[%clk 0:01:39.9]} 19. Rxd7
{[%clk 0:02:42.5]} 19... Rxd7 {[%clk 0:01:39.1]} 20. Rd1 {[%clk 0:02:43.1]}
20... Rxd1+ {[%clk 0:01:37.2]} 21. Bxd1 {[%clk 0:02:38.5]} 21... Bd4 {[%clk
0:01:33.4]} 22. Kf1 {[%clk 0:02:36.4]} 22... Bxc3 {[%clk 0:01:32.8]} 23. bxc3
{[%clk 0:02:35.8]} 23... Bxa2 {[%clk 0:01:33.4]} 24. Ke2 {[%clk 0:02:33.7]}
24... Bc4+ {[%clk 0:01:32.9]} 25. Kf3 {[%clk 0:02:33.5]} 25... a5 {[%clk
0:01:30.9]} 26. Be2 {[%clk 0:02:29.8]} 26... Bxe2+ {[%clk 0:01:26.6]} 27. Kxe2
{[%clk 0:02:30.7]} 27... a4 {[%clk 0:01:26.3]} 28. Kd2 {[%clk 0:02:31.6]} 28...
b5 {[%clk 0:01:24.2]} 29. Kc1 {[%clk 0:02:32.5]} 29... c5 {[%clk 0:01:23.8]} 30.
Kb2 {[%clk 0:02:33.4]} 30... b4 {[%clk 0:01:23.5]} 31. cxb4 {[%clk 0:02:32.2]}
31... cxb4 {[%clk 0:01:24.4]} 32. g3 {[%clk 0:02:30.6]} 32... hxg3 {[%clk
0:01:22.3]} 33. fxg3 {[%clk 0:02:31.5]} 33... Kd7 {[%clk 0:01:18]} 34. h4 {[%clk
0:02:32]} 34... Ke6 {[%clk 0:01:17.7]} 35. g4 {[%clk 0:02:32.4]} 35... Kf6
{[%clk 0:01:17.5]} 36. Ka2 {[%clk 0:02:30.7]} 36... Ke6 {[%clk 0:01:06.1]} 37.
Kb2 {[%clk 0:02:27.7]} 37... c5 {[%clk 0:01:05.9]} 38. Ka2 {[%clk 0:02:26.7]}
38... c4 {[%clk 0:01:05.8]} 39. Kb2 {[%clk 0:02:26.7]} 39... c3+ {[%clk
0:01:04.5]} 40. Ka2 {[%clk 0:02:26]} 40... Kd6 {[%clk 0:01:01.9]} 41. h5 {[%clk
0:02:24.3]} 41... Ke6 {[%clk 0:01:01.2]} 42. g5 {[%clk 0:02:24.7]} 42... Kf7
{[%clk 0:00:59.8]} 43. Ka1 {[%clk 0:02:20.8]} 43... b3 {[%clk 0:00:59]} 44. Kb1
{[%clk 0:02:20.7]} 44... bxc2+ {[%clk 0:00:55.5]} 45. Kxc2 {[%clk 0:02:20.6]}
45... a3 {[%clk 0:00:50.4]} 46. Kxc3 {[%clk 0:02:20.7]} 46... g6 {[%clk
0:00:49.3]} 47. h6 {[%clk 0:02:18.4]} 47... Kg8 {[%clk 0:00:48.5]} 48. Kb3
{[%clk 0:02:18.2]} 48... Kh7 {[%clk 0:00:48.5]} 49. Kxa3 {[%clk 0:02:18.3]}
49... Kg8 {[%clk 0:00:48.3]} 50. Kb4 {[%clk 0:02:19.2]} 50... Kf7 {[%clk
0:00:48.6]} 51. Kc5 {[%clk 0:02:20.1]} 51... Kg8 {[%clk 0:00:47.2]} 52. Kd5
{[%clk 0:02:21]} 52... Kh7 {[%clk 0:00:47.5]} 53. Ke6 {[%clk 0:02:20.2]} 53...
Kh8 {[%clk 0:00:47.3]} 54. Kf7 {[%clk 0:02:17.8]} 54... Kh7 {[%clk 0:00:47.1]}
55. Kf6 {[%clk 0:02:18.2]} 55... Kh8 {[%clk 0:00:46.9]} 56. Kxg6 {[%clk
0:02:18.4]} 56... Kg8 {[%clk 0:00:47.5]} 57. Kf6 {[%clk 0:02:17.6]} 57... Kh7
{[%clk 0:00:47.3]} 58. Kxe5 {[%clk 0:02:17.7]} 58... Kg6 {[%clk 0:00:47.1]} 59.
Kd6 {[%clk 0:02:17.3]} 59... Kh7 {[%clk 0:00:46.7]} 60. Ke7 {[%clk 0:02:16.3]}
1-0

[Event "Late-Titled-Tuesday-Blitz-February-27-2024"]
[Site "Chess.com"]
[Date "2024.02.27"]
[Round "5"]
[White "Felix-Rose"]
[Black "WPWPWP-2015"]
[Result "0-1"]
[WhiteElo "2266"]
[BlackElo "2432"]
[TimeControl "180+1"]
[EndTime "14:54:31 PST"]
[Termination "WPWPWP-2015 won by resignation"]

1. e4 {[%clk 0:02:59.5]} 1... c5 {[%clk 0:02:59.1]} 2. Nf3 {[%clk 0:02:58.5]}
2... e6 {[%clk 0:02:59.4]} 3. d4 {[%clk 0:02:55.6]} 3... cxd4 {[%clk 0:02:59.6]}
4. Nxd4 {[%clk 0:02:56.5]} 4... Nc6 {[%clk 0:03:00]} 5. Nc3 {[%clk 0:02:56.6]}
5... Qc7 {[%clk 0:03:00]} 6. Be3 {[%clk 0:02:56.7]} 6... a6 {[%clk 0:03:00]} 7.
Qf3 {[%clk 0:02:56.6]} 7... Nf6 {[%clk 0:02:58.8]} 8. O-O-O {[%clk 0:02:57.1]}
8... Ne5 {[%clk 0:02:55.4]} 9. Qg3 {[%clk 0:02:57.3]} 9... h5 {[%clk 0:02:51]}
10. h4 {[%clk 0:02:50.6]} 10... d6 {[%clk 0:02:46.8]} 11. f4 {[%clk 0:02:37.5]}
11... Nc4 {[%clk 0:02:35.9]} 12. Bxc4 {[%clk 0:02:03]} 12... Qxc4 {[%clk
0:02:34.4]} 13. e5 {[%clk 0:02:00.4]} 13... Ng4 {[%clk 0:02:29.3]} 14. Rhe1
{[%clk 0:01:33.2]} 14... d5 {[%clk 0:02:27]} 15. Qf3 {[%clk 0:01:04.8]} 15... g6
{[%clk 0:02:10.8]} 16. Kb1 {[%clk 0:01:03.1]} 16... Bb4 {[%clk 0:02:06.5]} 17.
Rd3 {[%clk 0:01:01.9]} 17... Bd7 {[%clk 0:02:02.7]} 18. Bg1 {[%clk 0:01:01.7]}
18... Rc8 {[%clk 0:02:01.1]} 19. a3 {[%clk 0:00:55.4]} 19... Be7 {[%clk
0:01:58.8]} 20. g3 {[%clk 0:00:45.9]} 20... b5 {[%clk 0:01:58]} 21. Nb3 {[%clk
0:00:31.7]} 21... Qc7 {[%clk 0:01:47]} 22. Rd4 {[%clk 0:00:25.5]} 22... Bxa3
{[%clk 0:01:33]} 23. Nxd5 {[%clk 0:00:11.6]} 23... Qxc2+ {[%clk 0:01:30.2]} 0-1

[Event "Late-Titled-Tuesday-Blitz-February-27-2024"]
[Site "Chess.com"]
[Date "2024.02.27"]
[Round "5"]
[White "adricalderon8"]
[Black "Grischuk"]
[Result "0-1"]
[WhiteElo "2489"]
[BlackElo "3040"]
[TimeControl "180+1"]
[EndTime "14:54:33 PST"]
[Termination "Grischuk won by resignation"]

1. e4 {[%clk 0:03:00.9]} 1... e5 {[%clk 0:01:56.7]} 2. Nf3 {[%clk 0:03:00.1]}
2... Nc6 {[%clk 0:01:57.4]} 3. Bb5 {[%clk 0:02:59.1]} 3... a6 {[%clk 0:01:57]}
4. Ba4 {[%clk 0:02:59.2]} 4... Nf6 {[%clk 0:01:56.7]} 5. O-O {[%clk 0:02:59]}
5... Be7 {[%clk 0:01:56.7]} 6. Re1 {[%clk 0:02:55.1]} 6... b5 {[%clk 0:01:56.5]}
7. Bb3 {[%clk 0:02:54.9]} 7... d6 {[%clk 0:01:57.3]} 8. c3 {[%clk 0:02:51.7]}
8... O-O {[%clk 0:01:57.8]} 9. h3 {[%clk 0:02:51.5]} 9... Nd7 {[%clk 0:01:56.9]}
10. d4 {[%clk 0:02:50.8]} 10... Bf6 {[%clk 0:01:57.1]} 11. a4 {[%clk 0:02:48]}
11... Bb7 {[%clk 0:01:57.1]} 12. Na3 {[%clk 0:02:47.2]} 12... exd4 {[%clk
0:01:22.2]} 13. cxd4 {[%clk 0:02:43.1]} 13... Na5 {[%clk 0:01:22.6]} 14. Ba2
{[%clk 0:02:37]} 14... b4 {[%clk 0:01:11]} 15. Nc4 {[%clk 0:02:34.8]} 15... Nxc4
{[%clk 0:01:11.3]} 16. Bxc4 {[%clk 0:02:34.8]} 16... d5 {[%clk 0:01:12]} 17.
exd5 {[%clk 0:02:34.2]} 17... Nb6 {[%clk 0:01:11.9]} 18. b3 {[%clk 0:02:32.7]}
18... Bxd5 {[%clk 0:01:07.1]} 19. Qc2 {[%clk 0:02:14.2]} 19... Nxc4 {[%clk
0:01:05.7]} 20. bxc4 {[%clk 0:02:13.7]} 20... Bxf3 {[%clk 0:01:06.3]} 21. gxf3
{[%clk 0:02:14]} 21... Bxd4 {[%clk 0:00:55.5]} 22. Rd1 {[%clk 0:02:08.9]} 22...
Qf6 {[%clk 0:00:52.3]} 23. Rb1 {[%clk 0:02:06.8]} 23... c5 {[%clk 0:00:52.3]}
24. Rb3 {[%clk 0:02:03]} 24... Rae8 {[%clk 0:00:48.3]} 25. Rbd3 {[%clk 0:01:58]}
25... Re6 {[%clk 0:00:41.5]} 26. Kg2 {[%clk 0:01:54.9]} 26... Rfe8 {[%clk
0:00:35.6]} 27. f4 {[%clk 0:01:51.4]} 27... Re2 {[%clk 0:00:21.9]} 28. R3d2
{[%clk 0:01:51.2]} 28... Qc6+ {[%clk 0:00:20.5]} 29. Kh2 {[%clk 0:01:35.7]}
29... Qf3 {[%clk 0:00:18.5]} 0-1

[Event "Late-Titled-Tuesday-Blitz-February-27-2024"]
[Site "Chess.com"]
[Date "2024.02.27"]
[Round "5"]
[White "Rashad_Zeynalli"]
[Black "pirulillo"]
[Result "1-0"]
[WhiteElo "2635"]
[BlackElo "2234"]
[TimeControl "180+1"]
[EndTime "14:54:33 PST"]
[Termination "Rashad_Zeynalli won by checkmate"]

1. e4 {[%clk 0:03:00.9]} 1... c5 {[%clk 0:02:58.3]} 2. Nf3 {[%clk 0:03:01.5]}
2... e6 {[%clk 0:02:57.6]} 3. d4 {[%clk 0:03:01.9]} 3... cxd4 {[%clk 0:02:57.9]}
4. Nxd4 {[%clk 0:03:02.8]} 4... Nf6 {[%clk 0:02:57.5]} 5. Nc3 {[%clk 0:03:02.6]}
5... Nc6 {[%clk 0:02:57]} 6. Ndb5 {[%clk 0:03:01.6]} 6... d6 {[%clk 0:02:56.6]}
7. Bf4 {[%clk 0:03:00.6]} 7... e5 {[%clk 0:02:57.1]} 8. Bg5 {[%clk 0:03:01]}
8... a6 {[%clk 0:02:57.6]} 9. Na3 {[%clk 0:03:01.5]} 9... b5 {[%clk 0:02:58.2]}
10. Bxf6 {[%clk 0:03:00.2]} 10... gxf6 {[%clk 0:02:59.1]} 11. Nd5 {[%clk
0:02:52.3]} 11... Bg7 {[%clk 0:02:59.5]} 12. Bd3 {[%clk 0:02:44.9]} 12... Ne7
{[%clk 0:02:59.3]} 13. c4 {[%clk 0:02:41]} 13... Nxd5 {[%clk 0:02:47.3]} 14.
cxd5 {[%clk 0:02:33.3]} 14... f5 {[%clk 0:02:39.6]} 15. O-O {[%clk 0:02:22.9]}
15... fxe4 {[%clk 0:02:37.2]} 16. Bxe4 {[%clk 0:02:23.1]} 16... f5 {[%clk
0:02:37.6]} 17. Qh5+ {[%clk 0:02:21.8]} 17... Kf8 {[%clk 0:02:35]} 18. Bxf5
{[%clk 0:02:19.7]} 18... Qf6 {[%clk 0:02:27.3]} 19. Bxc8 {[%clk 0:02:15.5]}
19... Rxc8 {[%clk 0:02:28.2]} 20. Rac1 {[%clk 0:02:14.9]} 20... Ke7 {[%clk
0:02:28.7]} 21. Nc2 {[%clk 0:02:08.8]} 21... Bh6 {[%clk 0:02:27.5]} 22. Ne3
{[%clk 0:02:03.5]} 22... Bxe3 {[%clk 0:01:56.3]} 23. Rxc8 {[%clk 0:02:01.5]}
23... Rxc8 {[%clk 0:01:49.7]} 24. fxe3 {[%clk 0:01:41.3]} 24... Qg6 {[%clk
0:01:49]} 25. Qh4+ {[%clk 0:01:24.1]} 25... Ke8 {[%clk 0:01:47.6]} 26. Qf2
{[%clk 0:01:10]} 26... Ke7 {[%clk 0:01:46.3]} 27. e4 {[%clk 0:01:04.4]} 27...
Rg8 {[%clk 0:01:43.8]} 28. g3 {[%clk 0:00:54.6]} 28... h5 {[%clk 0:01:38.9]} 29.
Qa7+ {[%clk 0:00:52.4]} 29... Ke8 {[%clk 0:01:31.1]} 30. Qb8+ {[%clk 0:00:44.8]}
30... Kd7 {[%clk 0:01:30.3]} 31. Qb7+ {[%clk 0:00:44.4]} 31... Ke8 {[%clk
0:01:28.6]} 32. Rc1 {[%clk 0:00:41.7]} 32... Qxe4 {[%clk 0:01:13.7]} 33. Rc8#
{[%clk 0:00:37.7]} 1-0

[Event "Late-Titled-Tuesday-Blitz-February-27-2024"]
[Site "Chess.com"]
[Date "2024.02.27"]
[Round "5"]
[White "Fonsofan"]
[Black "VinzentSpitzl"]
[Result "1-0"]
[WhiteElo "2760"]
[BlackElo "2532"]
[TimeControl "180+1"]
[EndTime "14:54:42 PST"]
[Termination "Fonsofan won by resignation"]

1. b4 {[%clk 0:02:55.3]} 1... Nf6 {[%clk 0:02:57.5]} 2. Bb2 {[%clk 0:02:55.6]}
2... e6 {[%clk 0:02:56.9]} 3. b5 {[%clk 0:02:54.4]} 3... a6 {[%clk 0:02:54.6]}
4. a4 {[%clk 0:02:55]} 4... axb5 {[%clk 0:02:54.6]} 5. axb5 {[%clk 0:02:55.9]}
5... Rxa1 {[%clk 0:02:54.8]} 6. Bxa1 {[%clk 0:02:56.8]} 6... d5 {[%clk
0:02:53.6]} 7. Nf3 {[%clk 0:02:56.6]} 7... Be7 {[%clk 0:02:52.5]} 8. e3 {[%clk
0:02:57.1]} 8... O-O {[%clk 0:02:52.2]} 9. c4 {[%clk 0:02:57.7]} 9... c6 {[%clk
0:02:51.9]} 10. Qb3 {[%clk 0:02:55.4]} 10... Nbd7 {[%clk 0:02:46.6]} 11. Be2
{[%clk 0:02:55.4]} 11... Nc5 {[%clk 0:02:41.3]} 12. Qc2 {[%clk 0:02:55.2]} 12...
dxc4 {[%clk 0:02:36.5]} 13. Qxc4 {[%clk 0:02:48.6]} 13... cxb5 {[%clk
0:02:29.3]} 14. Qxb5 {[%clk 0:02:44.4]} 14... Bd7 {[%clk 0:02:29.2]} 15. Qb2
{[%clk 0:02:39.4]} 15... Na4 {[%clk 0:02:09.4]} 16. Qxb7 {[%clk 0:02:28.4]}
16... Qb8 {[%clk 0:01:59.6]} 17. Qxb8 {[%clk 0:02:24.6]} 17... Rxb8 {[%clk
0:01:59.9]} 18. O-O {[%clk 0:02:24.9]} 18... Ne4 {[%clk 0:01:50.9]} 19. Be5
{[%clk 0:02:15.7]} 19... Rc8 {[%clk 0:01:40.8]} 20. Ba6 {[%clk 0:02:03.3]} 20...
Rc2 {[%clk 0:01:35.2]} 21. Bd3 {[%clk 0:02:02.2]} 21... Nxd2 {[%clk 0:01:19.5]}
22. Bxc2 {[%clk 0:01:54.2]} 22... Nxf1 {[%clk 0:01:15.6]} 23. Kxf1 {[%clk
0:01:54.3]} 23... Nb6 {[%clk 0:01:13.3]} 24. Nc3 {[%clk 0:01:51.5]} 24... Nc4
{[%clk 0:01:12.3]} 25. Bc7 {[%clk 0:01:49.9]} 25... Bb4 {[%clk 0:01:11.6]} 26.
Ne5 {[%clk 0:01:35.4]} 26... Nxe5 {[%clk 0:00:39.9]} 27. Bxe5 {[%clk 0:01:36.3]}
27... f6 {[%clk 0:00:40.4]} 28. Na2 {[%clk 0:01:27.5]} 28... Bb5+ {[%clk
0:00:40.4]} 29. Kg1 {[%clk 0:01:26.1]} 29... Bc5 {[%clk 0:00:38.8]} 30. Bd4
{[%clk 0:01:24.4]} 30... Bd6 {[%clk 0:00:38.7]} 31. Bb3 {[%clk 0:01:24.2]} 31...
Kf7 {[%clk 0:00:38]} 32. Nc3 {[%clk 0:01:24.4]} 32... Bc6 {[%clk 0:00:37.7]} 33.
f4 {[%clk 0:01:24.7]} 33... h6 {[%clk 0:00:36.9]} 34. f5 {[%clk 0:01:21.7]}
34... Bd7 {[%clk 0:00:37.1]} 35. Ne4 {[%clk 0:01:20.6]} 35... Be7 {[%clk
0:00:32.3]} 36. Nc5 {[%clk 0:01:19.2]} 1-0

[Event "Late-Titled-Tuesday-Blitz-February-27-2024"]
[Site "Chess.com"]
[Date "2024.02.27"]
[Round "5"]
[White "guillembaches"]
[Black "MolecularChemist"]
[Result "1/2-1/2"]
[WhiteElo "2528"]
[BlackElo "2860"]
[TimeControl "180+1"]
[EndTime "14:54:48 PST"]
[Termination "Game drawn by repetition"]

1. d4 {[%clk 0:03:00.9]} 1... Nf6 {[%clk 0:02:19.7]} 2. Nf3 {[%clk 0:02:59]}
2... g6 {[%clk 0:02:18.3]} 3. Bg5 {[%clk 0:02:59.4]} 3... Bg7 {[%clk 0:02:18.5]}
4. Nbd2 {[%clk 0:02:59.5]} 4... d5 {[%clk 0:02:18.4]} 5. e3 {[%clk 0:02:59.2]}
5... O-O {[%clk 0:02:07.4]} 6. Be2 {[%clk 0:02:58.4]} 6... Nbd7 {[%clk
0:02:03.9]} 7. O-O {[%clk 0:02:57.7]} 7... c5 {[%clk 0:02:04.3]} 8. c3 {[%clk
0:02:58]} 8... b6 {[%clk 0:02:04.2]} 9. b4 {[%clk 0:02:58.2]} 9... Bb7 {[%clk
0:02:04.7]} 10. bxc5 {[%clk 0:02:58.5]} 10... bxc5 {[%clk 0:02:05.6]} 11. Qa4
{[%clk 0:02:58.6]} 11... Qc7 {[%clk 0:02:04.7]} 12. Bf4 {[%clk 0:02:53.6]} 12...
Qc8 {[%clk 0:02:05.1]} 13. h3 {[%clk 0:02:51.9]} 13... Nb6 {[%clk 0:02:05.1]}
14. Qa3 {[%clk 0:02:50.9]} 14... cxd4 {[%clk 0:02:00.7]} 15. cxd4 {[%clk
0:02:50.2]} 15... Nc4 {[%clk 0:01:54]} 16. Qxe7 {[%clk 0:02:36.5]} 16... Re8
{[%clk 0:01:45.2]} 17. Qc5 {[%clk 0:02:31]} 17... Qxc5 {[%clk 0:01:39.8]} 18.
dxc5 {[%clk 0:02:31.9]} 18... Ne4 {[%clk 0:01:40.1]} 19. Rad1 {[%clk 0:02:15.1]}
19... Ncxd2 {[%clk 0:01:12]} 20. Nxd2 {[%clk 0:02:07.8]} 20... Nc3 {[%clk
0:01:10.7]} 21. Rde1 {[%clk 0:02:08.1]} 21... Nxe2+ {[%clk 0:01:10.2]} 22. Rxe2
{[%clk 0:02:08.4]} 22... Ba6 {[%clk 0:01:11.1]} 23. Ree1 {[%clk 0:02:08.6]}
23... Bc3 {[%clk 0:00:59.8]} 24. Nb3 {[%clk 0:02:01]} 24... Bxf1 {[%clk
0:00:50.8]} 25. Rxf1 {[%clk 0:01:59.9]} 25... a5 {[%clk 0:00:51.4]} 26. Rc1
{[%clk 0:01:55.5]} 26... Bb4 {[%clk 0:00:50.1]} 27. c6 {[%clk 0:01:53.3]} 27...
Rec8 {[%clk 0:00:37]} 28. c7 {[%clk 0:01:52.7]} 28... Ra7 {[%clk 0:00:20.4]} 29.
a4 {[%clk 0:01:47.4]} 29... Kf8 {[%clk 0:00:17.7]} 30. Nd4 {[%clk 0:01:47.3]}
30... Rb7 {[%clk 0:00:17.9]} 31. Nb5 {[%clk 0:01:44.1]} 31... Ke7 {[%clk
0:00:17.3]} 32. Rc6 {[%clk 0:01:39.9]} 32... Kd7 {[%clk 0:00:13.9]} 33. Rf6
{[%clk 0:01:31.2]} 33... Ke7 {[%clk 0:00:13.9]} 34. Rc6 {[%clk 0:01:30.9]} 34...
Kd7 {[%clk 0:00:14.4]} 35. Rf6 {[%clk 0:01:30.9]} 35... Ke7 {[%clk 0:00:14.9]}
36. Rc6 {[%clk 0:01:31.1]} 1/2-1/2

[Event "Late-Titled-Tuesday-Blitz-February-27-2024"]
[Site "Chess.com"]
[Date "2024.02.27"]
[Round "5"]
[White "Vigg-Sama"]
[Black "ImportedItalianMaple"]
[Result "1-0"]
[WhiteElo "2264"]
[BlackElo "2516"]
[TimeControl "180+1"]
[EndTime "14:54:54 PST"]
[Termination "Vigg-Sama won by resignation"]

1. c4 {[%clk 0:03:00.9]} 1... g6 {[%clk 0:02:59.2]} 2. g3 {[%clk 0:03:01]} 2...
Bg7 {[%clk 0:02:59.4]} 3. Bg2 {[%clk 0:03:01.7]} 3... e5 {[%clk 0:02:55.7]} 4.
Nc3 {[%clk 0:03:00]} 4... f5 {[%clk 0:02:55.1]} 5. b4 {[%clk 0:02:56.7]} 5...
Nf6 {[%clk 0:02:52.7]} 6. Rb1 {[%clk 0:02:55.3]} 6... d6 {[%clk 0:02:47]} 7. d3
{[%clk 0:02:46.4]} 7... O-O {[%clk 0:02:46.5]} 8. Nf3 {[%clk 0:02:45.9]} 8... c6
{[%clk 0:02:44]} 9. b5 {[%clk 0:02:36.4]} 9... Nbd7 {[%clk 0:02:30.1]} 10. Ba3
{[%clk 0:02:32.8]} 10... Nc5 {[%clk 0:02:27.2]} 11. bxc6 {[%clk 0:02:30.3]}
11... bxc6 {[%clk 0:02:27.2]} 12. Bxc5 {[%clk 0:02:30.3]} 12... dxc5 {[%clk
0:02:27.6]} 13. Nxe5 {[%clk 0:02:20.4]} 13... Qd4 {[%clk 0:02:22]} 14. Nxc6
{[%clk 0:02:20.1]} 14... Qxc3+ {[%clk 0:02:21.8]} 15. Qd2 {[%clk 0:02:20.7]}
15... Qxd2+ {[%clk 0:02:07.4]} 16. Kxd2 {[%clk 0:02:21.6]} 16... Be6 {[%clk
0:01:32.5]} 17. Ne7+ {[%clk 0:02:17.4]} 17... Kh8 {[%clk 0:01:33.1]} 18. Bxa8
{[%clk 0:02:14.4]} 18... Rxa8 {[%clk 0:01:34]} 19. Rb7 {[%clk 0:02:06]} 19...
Ng4 {[%clk 0:01:30.8]} 20. f3 {[%clk 0:01:59.1]} 20... Ne5 {[%clk 0:01:27.7]}
21. Rhb1 {[%clk 0:01:55.7]} 21... Nd7 {[%clk 0:00:38.3]} 22. Nc6 {[%clk
0:01:39.1]} 22... Re8 {[%clk 0:00:14.8]} 23. Rxa7 {[%clk 0:01:37]} 23... Ne5
{[%clk 0:00:14.2]} 24. Nxe5 {[%clk 0:01:32.5]} 24... Bxe5 {[%clk 0:00:15.1]} 25.
Rbb7 {[%clk 0:01:31.6]} 25... Bg8 {[%clk 0:00:15.7]} 26. Re7 {[%clk 0:01:30.7]}
26... Rxe7 {[%clk 0:00:13.2]} 27. Rxe7 {[%clk 0:01:31.6]} 27... Bd4 {[%clk
0:00:13.2]} 28. a4 {[%clk 0:01:31.1]} 28... Bf6 {[%clk 0:00:12.4]} 29. Re8
{[%clk 0:01:30.3]} 29... Kg7 {[%clk 0:00:12.4]} 30. a5 {[%clk 0:01:30.7]} 30...
Bf7 {[%clk 0:00:13]} 31. Rb8 {[%clk 0:01:24]} 31... Be5 {[%clk 0:00:13]} 32. Rb7
{[%clk 0:01:24.2]} 32... Kf6 {[%clk 0:00:12.9]} 33. a6 {[%clk 0:01:24.7]} 33...
Be8 {[%clk 0:00:13.6]} 34. a7 {[%clk 0:01:25]} 34... Bc6 {[%clk 0:00:14.4]} 35.
Rb6 {[%clk 0:01:23.9]} 1-0

[Event "Late-Titled-Tuesday-Blitz-February-27-2024"]
[Site "Chess.com"]
[Date "2024.02.27"]
[Round "5"]
[White "egnfanclub"]
[Black "Bugcrusher"]
[Result "0-1"]
[WhiteElo "2402"]
[BlackElo "2575"]
[TimeControl "180+1"]
[EndTime "14:54:56 PST"]
[Termination "Bugcrusher won by resignation"]

1. e4 {[%clk 0:03:00.9]} 1... c6 {[%clk 0:02:56.8]} 2. d4 {[%clk 0:03:00.2]}
2... d5 {[%clk 0:02:57]} 3. exd5 {[%clk 0:03:01]} 3... cxd5 {[%clk 0:02:57.1]}
4. c4 {[%clk 0:03:01.8]} 4... Nf6 {[%clk 0:02:57]} 5. Nc3 {[%clk 0:03:02.6]}
5... Nc6 {[%clk 0:02:56.9]} 6. Nf3 {[%clk 0:03:02.5]} 6... a6 {[%clk 0:02:57]}
7. cxd5 {[%clk 0:02:54.6]} 7... Nxd5 {[%clk 0:02:56.2]} 8. Bc4 {[%clk
0:02:54.8]} 8... Be6 {[%clk 0:02:55.6]} 9. Qe2 {[%clk 0:02:17.7]} 9... Rc8
{[%clk 0:02:43.5]} 10. Bb3 {[%clk 0:01:47.5]} 10... Na5 {[%clk 0:02:33.2]} 11.
Bxd5 {[%clk 0:01:05.1]} 11... Bxd5 {[%clk 0:02:32.5]} 12. Nxd5 {[%clk 0:01:04]}
12... Qxd5 {[%clk 0:02:31.6]} 13. O-O {[%clk 0:01:04.8]} 13... e6 {[%clk
0:02:26.3]} 14. Bg5 {[%clk 0:00:51.3]} 14... h6 {[%clk 0:02:20.5]} 15. Bf4
{[%clk 0:00:48.7]} 15... Be7 {[%clk 0:02:17.3]} 16. Rfc1 {[%clk 0:00:48.2]}
16... O-O {[%clk 0:02:16.7]} 17. b3 {[%clk 0:00:47.2]} 17... Nc6 {[%clk
0:02:10.9]} 18. Rd1 {[%clk 0:00:39.1]} 18... Bf6 {[%clk 0:02:10]} 19. Qe3 {[%clk
0:00:24.9]} 19... Rfd8 {[%clk 0:02:08]} 20. Rac1 {[%clk 0:00:22]} 20... Nxd4
{[%clk 0:02:03.4]} 21. Nxd4 {[%clk 0:00:19.5]} 21... Rxc1 {[%clk 0:02:02.2]} 22.
Rxc1 {[%clk 0:00:18.3]} 22... Qxd4 {[%clk 0:01:56.3]} 23. Qxd4 {[%clk
0:00:11.6]} 23... Rxd4 {[%clk 0:01:56.3]} 24. Be3 {[%clk 0:00:12.5]} 24... Rd5
{[%clk 0:01:48.3]} 25. Kf1 {[%clk 0:00:13]} 25... Bd4 {[%clk 0:01:46]} 26. Rc7
{[%clk 0:00:12.2]} 26... Bxe3 {[%clk 0:01:45.3]} 27. fxe3 {[%clk 0:00:13.1]}
27... Rd2 {[%clk 0:01:45]} 28. a4 {[%clk 0:00:11.7]} 28... b5 {[%clk 0:01:39.7]}
29. axb5 {[%clk 0:00:11.4]} 29... axb5 {[%clk 0:01:39.9]} 30. Rb7 {[%clk
0:00:12.3]} 30... Rd5 {[%clk 0:01:38.7]} 31. Ke2 {[%clk 0:00:12.4]} 31... g5
{[%clk 0:01:35.6]} 32. e4 {[%clk 0:00:12.8]} 32... Rd4 {[%clk 0:01:32.1]} 33.
Ke3 {[%clk 0:00:12.6]} 33... Rb4 {[%clk 0:01:32.2]} 34. Kf3 {[%clk 0:00:06]}
34... Kg7 {[%clk 0:01:30.2]} 0-1